fUST/lending_fUST_20260117
["ID","MTS","AMOUNT","RATE_DAILY","PERIOD"]
[402328295,1768659071041,-913.11,0.00016986,3]
[402328298,1768659071051,-500.0,0.00016986,3]
[402328299,1768659071062,-568.79,0.00016986,3]
[402328301,1768659071072,-500.0,0.00016986,3]
[402328303,1768659071081,-500.0,0.00016986,3]
[402328306,1768659071091,-561.39,0.00016986,3]
[402328308,1768659071101,-531.99,0.00016986,3]
[402328310,1768659071112,-500.0,0.00016986,3]
[402328311,1768659071121,-500.0,0.00016986,3]
[402328314,1768659071131,-500.0,0.00016986,3]
[402328316,1768659071141,-500.0,0.00016986,3]
[402328318,1768659071150,-500.0,0.00016986,3]
[402328320,1768659071160,-1211.48,0.00016986,3]
[402328322,1768659071169,-1177.76,0.00016986,3]
[402328324,1768659071179,-500.0,0.00016986,3]
[402328326,1768659071189,-939.73,0.00016986,3]
[402328328,1768659071199,-670.95,0.00016986,3]
[402328330,1768659071209,-1326.69,0.00016986,3]
[402328332,1768659071219,-1081.34,0.00016986,3]
[402328334,1768659071229,-512.41,0.00016986,3]
[402328336,1768659071239,-500.0,0.00016986,3]
[402328338,1768659071249,-1622.28,0.00016986,3]
[402328340,1768659071258,-567.25,0.00016986,3]
[402328342,1768659071269,-510.09347373,0.00016986,3]
[402328344,1768659071279,-1106.71,0.00016986,3]
[402328347,1768659071290,-500.0,0.00016986,3]
[402328348,1768659071299,-597.09,0.00016986,3]
[402328351,1768659071310,-500.0,0.00016986,3]
[402328352,1768659071320,-500.0,0.00016986,3]
[402328354,1768659071330,-500.0,0.00016986,3]
[402328356,1768659071339,-1431.76,0.00016986,3]
[402328358,1768659071348,-500.0,0.00016986,3]
[402328360,1768659071358,-500.0,0.00016986,3]
[402328362,1768659071368,-500.0,0.00016986,3]
[402328365,1768659071377,-500.0,0.00016986,3]
[402328366,1768659071388,-501.51,0.00016986,3]
[402328369,1768659071398,-610.02,0.00016986,3]
[402328371,1768659071408,-500.0,0.00016986,3]
[402328372,1768659071419,-1010.29,0.00016986,3]
[402328375,1768659071429,-500.0,0.00016986,3]
[402328377,1768659071439,-500.0,0.00016986,3]
[402328379,1768659071449,-609.3,0.00016986,3]
[402328381,1768659071458,-2815.19,0.00016986,3]
[402328383,1768659071468,-647.23,0.00016986,3]
[402328385,1768659071477,-500.0,0.00016986,3]
[402328387,1768659071487,-500.0,0.00016986,3]
[402328389,1768659071497,-2008.11,0.00016986,3]
[402328391,1768659071506,-992.91,0.00016986,3]
[402328393,1768659071515,-500.0,0.00016986,3]
[402328395,1768659071525,-500.0,0.00016986,3]
[402328397,1768659071535,-759.0,0.00016986,3]
[402328399,1768659071545,-557.01,0.00016986,3]
[402328401,1768659071555,-793.38,0.00016986,3]
[402328403,1768659071565,-561.04,0.00016986,3]
[402328405,1768659071575,-500.0,0.00016986,3]
[402328407,1768659071584,-500.0,0.00016986,3]
[402328409,1768659071593,-620.44,0.00016986,3]
[402328411,1768659071603,-599.93,0.00016986,3]
[402328413,1768659071614,-500.0,0.00016986,3]
[402328416,1768659071624,-500.0,0.00016986,3]
[402328418,1768659071634,-500.0,0.00016986,3]
[402328420,1768659071644,-722.98,0.00016986,3]
[402328422,1768659071654,-500.0,0.00016986,3]
[402328424,1768659071664,-500.0,0.00016986,2]
[402328426,1768659071673,-893.02,0.00016986,3]
[402328428,1768659071683,-945.42,0.00016986,3]
[402328430,1768659071692,-1045.03,0.00016986,3]
[402328432,1768659071702,-8441.37,0.00016986,3]
[402328434,1768659071712,-1046.6,0.00016986,3]
[402328436,1768659071722,-500.0,0.00016986,3]
[402328438,1768659071732,-645.09,0.00016986,3]
[402328450,1768659071930,-500.0,0.00016986,3]
[402328452,1768659071940,-500.0,0.00016986,3]
[402328454,1768659071950,-500.0,0.00016986,3]
[402328456,1768659071959,-500.0,0.00016986,3]
[402328458,1768659071967,-598.18,0.00016986,3]
[402328460,1768659071977,-606.30623582,0.00016986,3]
[402328462,1768659071987,-500.0,0.00016986,3]
[402328464,1768659071995,-500.0,0.00016986,3]
[402328466,1768659072004,-500.0,0.00016986,3]
[402328468,1768659072013,-980.47,0.00016986,3]
[402328470,1768659072023,-1662.71,0.00016986,3]
[402328472,1768659072032,-500.0,0.00016986,3]
[402328474,1768659072041,-500.0,0.00016986,3]
[402328476,1768659072050,-500.0,0.00016986,3]
[402328478,1768659072059,-583.28,0.00016986,3]
[402328480,1768659072069,-500.0,0.00016986,3]
[402328482,1768659072078,-500.0,0.00016986,3]
[402328484,1768659072088,-916.68,0.00016986,3]
[402328486,1768659072098,-500.0,0.00016986,3]
[402328488,1768659072107,-500.0,0.00016986,3]
[402328490,1768659072117,-1239.92,0.00016986,3]
[402328492,1768659072126,-500.0,0.00016986,3]
[402328494,1768659072136,-959.49,0.00016986,3]
[402328497,1768659072146,-1628.03,0.00016986,3]
[402328498,1768659072155,-1330.27,0.00016986,3]
[402328501,1768659072165,-645.96,0.00016986,3]
[402328502,1768659072174,-500.0,0.00016986,3]
[402328505,1768659072184,-500.0,0.00016986,3]
[402328507,1768659072193,-500.0,0.00016986,3]
[402328508,1768659072203,-500.0,0.00016986,3]
[402328511,1768659072213,-500.0,0.00016986,3]
[402328513,1768659072222,-1605.91,0.00016986,3]
[402328515,1768659072231,-2039.45,0.00016986,3]
[402328517,1768659072241,-500.0,0.00016986,3]
[402328519,1768659072250,-500.0,0.00016986,3]
[402328520,1768659072260,-1033.72,0.00016986,3]
[402328522,1768659072270,-782.18,0.00016986,3]
[402328524,1768659072279,-500.0,0.00016986,3]
[402328526,1768659072288,-784.27,0.00016986,3]
[402328529,1768659072299,-500.0,0.00016986,3]
[402328531,1768659072308,-500.0,0.00016986,3]
[402328533,1768659072318,-1140.99,0.00016986,3]
[402328535,1768659072328,-500.0,0.00016986,3]
[402328537,1768659072337,-791.1,0.00016986,3]
[402328539,1768659072346,-500.0,0.00016986,3]
[402328541,1768659072356,-500.0,0.00016986,3]
[402328543,1768659072365,-500.0,0.00016986,3]
[402328545,1768659072375,-3211.22,0.00016986,3]
[402328547,1768659072385,-795.5,0.00016986,3]
[402328549,1768659072394,-500.0,0.00016986,3]
[402328551,1768659072404,-500.0,0.00016986,3]
[402328553,1768659072413,-1112.08,0.00016986,3]
[402328555,1768659072422,-632.75,0.00016986,3]
[402328557,1768659072432,-500.0,0.00016986,3]
[402328559,1768659072441,-500.0,0.00016986,3]
[402328561,1768659072450,-500.0,0.00016986,3]
[402328563,1768659072459,-601.82,0.00016986,3]
[402328565,1768659072468,-598.94,0.00016986,3]
[402328567,1768659072478,-1550.67,0.00016986,3]
[402328569,1768659072487,-2433.28,0.00016986,3]
[402328572,1768659072507,-508.15,0.00016986,3]
[402328574,1768659072518,-555.88,0.00016986,3]
[402328576,1768659072527,-500.0,0.00016986,3]
[402328578,1768659072537,-502.25738328,0.00016986,3]
[402328580,1768659072547,-500.0,0.00016986,3]
[402328582,1768659072557,-500.0,0.00016986,3]
[402328585,1768659072567,-1739.47,0.00016986,3]
[402328587,1768659072577,-500.0,0.00016986,3]
[402328589,1768659072587,-500.0,0.00016986,3]
[402328591,1768659072596,-1598.4,0.00016986,3]
[402328593,1768659072608,-1063.53,0.00016986,3]
[402328595,1768659072617,-500.0,0.00016986,3]
[402328597,1768659072627,-1469.78,0.00016986,3]
[402328599,1768659072637,-500.0,0.00016986,3]
[402328601,1768659072646,-500.0,0.00016986,3]
[402328603,1768659072656,-463.94480204,0.00016986,3]
[402328605,1768659072666,-934.75,0.00016986,3]
[402328607,1768659072675,-629.75777174,0.00016986,3]
[402328610,1768659072685,-915.24,0.00016986,3]
[402328612,1768659072695,-733.19,0.00016986,3]
[402328614,1768659072705,-641.28572861,0.00016986,3]
[402328616,1768659072715,-816.16,0.00016986,3]
[402328618,1768659072725,-500.0,0.00016986,3]
[402328620,1768659072735,-1878.43,0.00016986,3]
[402328622,1768659072745,-500.0,0.00016986,3]
[402328624,1768659072754,-1089.71,0.00016986,3]
[402328626,1768659072763,-500.0,0.00016986,3]
[402328628,1768659072773,-500.0,0.00016986,3]
[402328630,1768659072783,-500.0,0.00016986,3]
[402328632,1768659072793,-750.97,0.00016986,3]
[402328635,1768659072803,-500.0,0.00016986,3]
[402328637,1768659072812,-500.0,0.00016986,3]
[402328639,1768659072822,-1031.25,0.00016986,3]
[402328641,1768659072831,-1374.51,0.00016986,3]
[402328643,1768659072841,-1506.77,0.00016986,3]
[402328645,1768659072854,-500.0,0.00016986,3]
[402328647,1768659072863,-654.05,0.00016986,3]
[402328649,1768659072873,-500.0,0.00016986,3]
[402328651,1768659072882,-500.0,0.00016986,3]
[402328653,1768659072892,-1254.14,0.00016986,3]
[402328655,1768659072902,-1550.94,0.00016986,3]
[402328657,1768659072911,-885.27,0.00016986,3]
[402328659,1768659072921,-500.0,0.00016986,3]
[402328661,1768659072931,-500.0,0.00016986,3]
[402328663,1768659072941,-1929.23,0.00016986,3]
[402328665,1768659072951,-500.0,0.00016986,3]
[402328667,1768659072961,-500.0,0.00016986,3]
[402328669,1768659072970,-871.62,0.00016986,3]
[402328671,1768659072980,-500.0,0.00016986,3]
[402328673,1768659072989,-500.0,0.00016986,3]
[402328676,1768659073003,-500.0,0.00016986,3]
[402328678,1768659073013,-500.0,0.00016986,3]
[402328680,1768659073023,-1606.32,0.00016986,3]
[402328682,1768659073033,-548.96,0.00016986,3]
[402328684,1768659073043,-500.0,0.00016986,3]
[402328686,1768659073053,-500.0,0.00016986,3]
[402328688,1768659073063,-367.06559996,0.00016986,3]
[402328690,1768659073073,-500.0,0.00016986,3]
[402328693,1768659073083,-500.0,0.00016986,3]
[402328695,1768659073093,-747.4,0.00016986,3]
[402328697,1768659073103,-977.24,0.00016986,3]
[402328699,1768659073113,-500.0,0.00016986,3]
[402328701,1768659073123,-500.0,0.00016986,3]
[402328703,1768659073133,-500.0,0.00016986,3]
[402328705,1768659073143,-500.0,0.00016986,2]
[402328707,1768659073153,-1149.89,0.00016986,3]
[402328709,1768659073163,-500.0,0.00016986,3]
[402328711,1768659073172,-500.0,0.00016986,3]
[402328713,1768659073182,-500.0,0.00016986,3]
[402328715,1768659073192,-500.0,0.00016986,3]
[402328718,1768659073202,-500.0,0.00016986,3]
[402328720,1768659073212,-500.0,0.00016986,3]
[402328722,1768659073222,-500.0,0.00016986,2]
[402328724,1768659073232,-500.0,0.00016986,3]
[402328726,1768659073241,-500.0,0.00016986,3]
[402328728,1768659073250,-500.0,0.00016986,3]
[402328730,1768659073260,-574.13,0.00016986,3]
[402328732,1768659073269,-602.36,0.00016986,3]
[402328734,1768659073279,-502.51,0.00016986,3]
[402328736,1768659073288,-500.0,0.00016986,2]
[402328738,1768659073298,-8552.595584,0.00016986,7]
[402328740,1768659073308,-150.12056451,0.00016986,2]
[402328742,1768659073318,-2004.21199472,0.00016986,2]
[402328744,1768659073328,-200.0,0.00017,2]
[402328746,1768659073337,-200.0,0.00017,2]
[402328748,1768659073347,-200.0,0.00017,2]
[402328750,1768659073357,-200.0,0.00017,2]
[402328753,1768659073366,-200.0,0.00017,2]
[402328755,1768659073375,-200.0,0.00017,2]
[402328757,1768659073384,-200.0,0.00017,2]
[402328759,1768659073393,-200.0,0.00017,2]
[402328761,1768659073403,-209.50263211,0.00017,2]
[402328763,1768659073413,-521.0,0.00017008,2]
[402328765,1768659073422,-252.0,0.00017008,2]
[402328767,1768659073432,-1234.0,0.00017008,2]
[402328769,1768659073442,-533.88981491,0.00017075,2]
[402328771,1768659073453,-2579.17784983,0.00017075,2]
[402328773,1768659073463,-35626.07771682,0.00017075,2]
[402328775,1768659073472,-236.2,0.00017077,2]
[402328777,1768659073481,-800.0,0.00017115,2]
[402328779,1768659073491,-159.576895,0.00017123,7]
[402328782,1768659073504,-156.35103018,0.00017148,2]
[402328784,1768659073515,-166.0,0.00017148,2]
[402328786,1768659073525,-348.0,0.00017148,2]
[402328788,1768659073536,-152.0,0.00017148,2]
[402328790,1768659073546,-348.0,0.00017148,2]
[402328792,1768659073555,-172.0,0.00017148,2]
[402328795,1768659073565,-152.0,0.00017148,2]
[402328797,1768659073575,-348.0,0.00017148,2]
[402328799,1768659073585,-152.0,0.00017148,2]
[402328801,1768659073594,-348.0,0.00017148,2]
[402328803,1768659073603,-152.0,0.00017148,2]
[402328805,1768659073612,-348.0,0.00017148,2]
[402328807,1768659073621,-152.0,0.00017148,2]
[402328809,1768659073630,-151.0,0.00017148,2]
[402328811,1768659073640,-348.0,0.00017148,2]
[402328813,1768659073650,-152.0,0.00017148,2]
[402328815,1768659073659,-151.0,0.00017148,2]
[402328817,1768659073669,-348.0,0.00017148,2]
[402328819,1768659073679,-151.0,0.00017148,2]
[402328821,1768659073688,-348.0,0.00017148,2]
[402328823,1768659073698,-151.0,0.00017148,2]
[402328825,1768659073707,-348.0,0.00017148,2]
[402328827,1768659073717,-151.0,0.00017148,2]
[402328829,1768659073727,-348.0,0.00017148,2]
[402328831,1768659073736,-151.0,0.00017148,2]
[402328834,1768659073746,-348.0,0.00017148,2]
[402328836,1768659073755,-151.0,0.00017148,2]
[402328838,1768659073765,-348.0,0.00017148,2]
[402328840,1768659073774,-151.0,0.00017148,2]
[402328842,1768659073784,-348.0,0.00017148,2]
[402328844,1768659073793,-151.0,0.00017148,2]
[402328846,1768659073803,-348.0,0.00017148,2]
[402328848,1768659073812,-151.0,0.00017148,2]
[402328850,1768659073822,-348.0,0.00017148,2]
[402328852,1768659073832,-348.0,0.00017148,2]
[402328854,1768659073844,-151.0,0.00017148,2]
[402328856,1768659073854,-348.0,0.00017148,2]
[402328858,1768659073875,-151.0,0.00017148,2]
[402328860,1768659073897,-348.0,0.00017148,2]
[402328862,1768659073915,-151.0,0.00017148,2]
[402328864,1768659073925,-348.0,0.00017148,2]
[402328866,1768659073938,-151.0,0.00017148,2]
[402328869,1768659073948,-348.0,0.00017148,2]
[402328871,1768659073958,-301.61924279,0.00017148,2]
[402328873,1768659073967,-348.0,0.00017148,2]
[402328875,1768659073976,-348.0,0.00017148,2]
[402328877,1768659073987,-348.0,0.00017148,2]
[402328879,1768659073996,-348.0,0.00017148,2]
[402328881,1768659074006,-348.0,0.00017148,2]
[402328883,1768659074016,-348.0,0.00017148,2]
[402328885,1768659074026,-348.0,0.00017148,2]
[402328887,1768659074036,-348.0,0.00017148,2]
[402328889,1768659074046,-348.0,0.00017148,2]
[402328891,1768659074057,-348.0,0.00017148,2]
[402328893,1768659074067,-348.0,0.00017148,2]
[402328895,1768659074077,-348.0,0.00017148,2]
[402328897,1768659074087,-348.0,0.00017148,2]
[402328899,1768659074096,-348.0,0.00017148,2]
[402328901,1768659074105,-166.0,0.00017148,2]
[402328903,1768659074115,-348.0,0.00017148,2]
[402328905,1768659074125,-166.0,0.00017148,2]
[402328907,1768659074134,-348.0,0.00017148,2]
[402328909,1768659074144,-166.0,0.00017148,2]
[402328911,1768659074154,-348.0,0.00017148,2]
[402328913,1768659074163,-166.0,0.00017148,2]
[402328915,1768659074174,-348.0,0.00017148,2]
[402328918,1768659074183,-304.99381889,0.00017148,2]
[402328920,1768659074193,-348.0,0.00017148,2]
[402328922,1768659074202,-348.0,0.00017148,2]
[402328924,1768659074212,-348.0,0.00017148,2]
[402328925,1768659074221,-348.0,0.00017148,2]
[402328928,1768659074231,-348.0,0.00017148,2]
[402328930,1768659074240,-348.0,0.00017148,2]
[402328932,1768659074250,-348.0,0.00017148,2]
[402328934,1768659074260,-348.0,0.00017148,2]
[402328936,1768659074270,-348.0,0.00017148,2]
[402328938,1768659074279,-348.0,0.00017148,2]
[402328940,1768659074288,-348.0,0.00017148,2]
[402328942,1768659074297,-348.0,0.00017148,2]
[402328944,1768659074307,-348.0,0.00017148,2]
[402328946,1768659074316,-348.0,0.00017148,2]
[402328948,1768659074326,-348.0,0.00017148,2]
[402328950,1768659074335,-348.0,0.00017148,2]
[402328952,1768659074344,-348.0,0.00017148,2]
[402328954,1768659074355,-348.0,0.00017148,2]
[402328956,1768659074364,-348.0,0.00017148,2]
[402328958,1768659074373,-348.0,0.00017148,2]
[402328960,1768659074383,-348.0,0.00017148,2]
[402328962,1768659074392,-348.0,0.00017148,2]
[402328964,1768659074401,-348.0,0.00017148,2]
[402328966,1768659074411,-348.0,0.00017148,2]
[402328968,1768659074420,-348.0,0.00017148,2]
[402328970,1768659074430,-348.0,0.00017148,2]
[402328972,1768659074439,-348.0,0.00017148,2]
[402328974,1768659074449,-165.38324184,0.00017148,2]
[402328976,1768659074458,-21305.78554228,0.0001716,2]
[402328978,1768659074467,-778.0,0.000172,2]
[402328981,1768659074478,-819.05922748,0.0001726,3]
[402328983,1768659074487,-500.0,0.0001726,3]
[402328985,1768659074497,-500.0,0.0001726,3]
[402328987,1768659074507,-978.82,0.0001726,3]
[402328989,1768659074516,-500.0,0.0001726,3]
[402328991,1768659074525,-500.0,0.0001726,3]
[402328993,1768659074541,-500.0,0.0001726,3]
[402328996,1768659074554,-1000.0,0.0001726,2]
[402328998,1768659074564,-500.0,0.0001726,3]
[402329000,1768659074573,-1229.39,0.0001726,3]
[402329002,1768659074583,-500.0,0.0001726,3]
[402329004,1768659074592,-500.0,0.0001726,3]
[402329006,1768659074602,-556.53,0.0001726,3]
[402329008,1768659074611,-500.0,0.0001726,3]
[402329010,1768659074621,-500.0,0.0001726,3]
[402329012,1768659074631,-500.0,0.0001726,3]
[402329014,1768659074640,-500.0,0.0001726,3]
[402329016,1768659074650,-500.0,0.0001726,3]
[402329018,1768659074659,-500.0,0.0001726,3]
[402329020,1768659074669,-672.56,0.0001726,3]
[402329022,1768659074679,-500.0,0.0001726,3]
[402329024,1768659074689,-792.58,0.0001726,3]
[402329026,1768659074698,-504.49,0.0001726,3]
[402329028,1768659074707,-673.73,0.0001726,3]
[402329030,1768659074717,-567.58,0.0001726,3]
[402329032,1768659074726,-1022.08,0.0001726,3]
[402329034,1768659074736,-500.0,0.0001726,3]
[402329036,1768659074745,-500.0,0.0001726,3]
[402329038,1768659074754,-762.34,0.0001726,3]
[402329040,1768659074763,-500.0,0.0001726,3]
[402329042,1768659074772,-950.57,0.0001726,3]
[402329044,1768659074781,-500.0,0.0001726,3]
[402329046,1768659074791,-500.0,0.0001726,3]
[402329048,1768659074800,-500.0,0.0001726,3]
[402329050,1768659074810,-500.0,0.0001726,3]
[402329052,1768659074821,-500.0,0.0001726,3]
[402329054,1768659074830,-608.16905118,0.0001726,3]
[402329056,1768659074840,-1072.24,0.0001726,3]
[402329058,1768659074849,-500.0,0.0001726,3]
[402329060,1768659074863,-500.0,0.0001726,3]
[402329062,1768659074872,-500.0,0.0001726,3]
[402329064,1768659074882,-500.0,0.0001726,3]
[402329066,1768659074891,-507.22,0.0001726,3]
[402329068,1768659074902,-500.0,0.0001726,3]
[402329070,1768659074912,-500.0,0.0001726,3]
[402329073,1768659074923,-836.71,0.0001726,3]
[402329074,1768659074934,-500.0,0.0001726,3]
[402329077,1768659074945,-500.0,0.0001726,3]
[402329079,1768659074956,-500.0,0.0001726,3]
[402329080,1768659074965,-500.0,0.0001726,3]
[402329082,1768659074975,-500.0,0.0001726,3]
[402329085,1768659074984,-1098.82,0.0001726,3]
[402329086,1768659074994,-500.0,0.0001726,3]
[402329088,1768659075003,-500.0,0.0001726,3]
[402329091,1768659075012,-500.0,0.0001726,3]
[402329093,1768659075022,-500.0,0.0001726,3]
[402329094,1768659075032,-500.0,0.0001726,3]
[402329097,1768659075042,-1864.45,0.0001726,3]
[402329099,1768659075051,-500.0,0.0001726,3]
[402329101,1768659075060,-772.16,0.0001726,3]
[402329103,1768659075069,-500.0,0.0001726,3]
[402329104,1768659075079,-500.0,0.0001726,3]
[402329106,1768659075089,-168.23320526,0.0001726,3]
[402329108,1768659075098,-523.8,0.0001726,3]
[402329111,1768659075108,-500.0,0.0001726,3]
[402329113,1768659075118,-500.0,0.0001726,3]
[402329115,1768659075128,-500.0,0.0001726,3]
[402329117,1768659075137,-500.0,0.0001726,3]
[402329118,1768659075147,-785.13,0.0001726,3]
[402329121,1768659075157,-500.0,0.0001726,3]
[402329123,1768659075168,-1777.27,0.0001726,3]
[402329125,1768659075178,-875.55,0.0001726,3]
[402329126,1768659075187,-500.0,0.0001726,3]
[402329129,1768659075197,-964.42,0.0001726,3]
[402329131,1768659075212,-564.35,0.0001726,3]
[402329133,1768659075222,-612.1,0.0001726,3]
[402329135,1768659075233,-500.0,0.0001726,3]
[402329137,1768659075243,-643.39,0.0001726,3]
[402329139,1768659075253,-976.59,0.0001726,3]
[402329141,1768659075263,-974.97,0.0001726,3]
[402329143,1768659075272,-1699.56,0.0001726,3]
[402329145,1768659075282,-500.0,0.0001726,3]
[402329147,1768659075291,-500.0,0.0001726,3]
[402329149,1768659075300,-500.0,0.0001726,3]
[402329151,1768659075310,-999.91,0.0001726,3]
[402329153,1768659075320,-500.0,0.0001726,3]
[402329155,1768659075329,-500.0,0.0001726,3]
[402329157,1768659075339,-530.71,0.0001726,3]
[402329159,1768659075349,-500.0,0.0001726,3]
[402329161,1768659075359,-1003.52,0.0001726,3]
[402329163,1768659075369,-741.6,0.0001726,3]
[402329165,1768659075378,-500.0,0.0001726,3]
[402329167,1768659075388,-500.0,0.0001726,3]
[402329169,1768659075398,-565.41,0.0001726,3]
[402329172,1768659075407,-979.46,0.0001726,3]
[402329174,1768659075417,-895.32,0.0001726,3]
[402329176,1768659075427,-904.31,0.0001726,3]
[402329178,1768659075436,-903.29,0.0001726,3]
[402329180,1768659075446,-214.48714005,0.0001726,3]
[402329182,1768659075456,-500.0,0.0001726,3]
[402329184,1768659075466,-500.0,0.0001726,3]
[402329186,1768659075476,-1000.0,0.0001726,2]
[402329188,1768659075485,-500.0,0.0001726,3]
[402329190,1768659075495,-500.0,0.0001726,3]
[402329222,1768659075808,-500.0,0.0001726,3]
[402329224,1768659075820,-692.98,0.0001726,3]
[402329226,1768659075832,-500.0,0.0001726,3]
[402329228,1768659075842,-500.0,0.0001726,2]
[402329230,1768659075853,-500.0,0.0001726,3]
[402329232,1768659075865,-500.0,0.0001726,3]
[402329234,1768659075875,-500.0,0.0001726,3]
[402329236,1768659075885,-1541.12,0.0001726,3]
[402329238,1768659075895,-500.0,0.0001726,3]
[402329240,1768659075905,-1586.94,0.0001726,3]
[402329242,1768659075914,-500.0,0.0001726,3]
[402329244,1768659075925,-500.0,0.0001726,3]
[402329246,1768659075935,-500.0,0.0001726,3]
[402329248,1768659075944,-500.0,0.0001726,3]
[402329250,1768659075955,-557.26,0.0001726,3]
[402329252,1768659075963,-1200.0,0.0001726,2]
[402329254,1768659075973,-500.0,0.0001726,3]
[402329256,1768659075983,-960.56,0.0001726,3]
[402329258,1768659075992,-500.0,0.0001726,3]
[402329260,1768659076002,-1187.76,0.0001726,3]
[402329262,1768659076011,-500.0,0.0001726,3]
[402329264,1768659076020,-524.86,0.0001726,3]
[402329266,1768659076030,-500.0,0.0001726,3]
[402329268,1768659076040,-2078.62,0.0001726,3]
[402329270,1768659076050,-500.0,0.0001726,3]
[402329272,1768659076060,-500.0,0.0001726,3]
[402329274,1768659076069,-500.0,0.0001726,3]
[402329276,1768659076079,-510.56,0.0001726,3]
[402329278,1768659076088,-500.0,0.0001726,3]
[402329280,1768659076098,-500.0,0.0001726,3]
[402329282,1768659076108,-500.0,0.0001726,3]
[402329284,1768659076117,-500.0,0.0001726,3]
[402329286,1768659076127,-500.0,0.0001726,3]
[402329288,1768659076136,-504.11,0.0001726,3]
[402329290,1768659076145,-500.0,0.0001726,3]
[402329292,1768659076154,-500.0,0.0001726,3]
[402329294,1768659076164,-500.0,0.0001726,3]
[402329296,1768659076173,-500.0,0.0001726,3]
[402329298,1768659076183,-500.0,0.0001726,3]
[402329300,1768659076193,-500.0,0.0001726,3]
[402329302,1768659076203,-1289.75,0.0001726,3]
[402329304,1768659076213,-500.0,0.0001726,3]
[402329306,1768659076223,-500.0,0.0001726,3]
[402329308,1768659076232,-759.35,0.0001726,3]
[402329310,1768659076241,-500.0,0.0001726,3]
[402329311,1768659076251,-500.0,0.0001726,3]
[402329313,1768659076263,-500.0,0.0001726,3]
[402329315,1768659076273,-500.0,0.0001726,3]
[402329317,1768659076284,-526.57336217,0.0001726,3]
[402329319,1768659076294,-566.37,0.0001726,3]
[402329321,1768659076303,-500.0,0.0001726,3]
[402329323,1768659076313,-500.0,0.0001726,3]
[402329325,1768659076323,-985.63,0.0001726,3]
[402329327,1768659076333,-1802.89,0.0001726,3]
[402329329,1768659076342,-500.0,0.0001726,3]
[402329331,1768659076352,-500.0,0.0001726,3]
[402329333,1768659076362,-924.88,0.0001726,3]
[402329335,1768659076371,-500.0,0.0001726,3]
[402329336,1768659076380,-500.0,0.0001726,3]
[402329338,1768659076389,-875.06,0.0001726,3]
[402329340,1768659076399,-788.81,0.0001726,3]
[402329342,1768659076409,-500.0,0.0001726,3]
[402329344,1768659076419,-500.0,0.0001726,3]
[402329346,1768659076429,-523.17,0.0001726,3]
[402329348,1768659076439,-231.71584647,0.0001726,3]
[402329350,1768659076450,-1398.2,0.0001726,3]
[402329352,1768659076460,-500.0,0.0001726,3]